[Event "Late-Titled-Tuesday-Blitz-June-04-2024"]
[Site "Chess.com"]
[Date "2024.06.04"]
[Round "11"]
[White "StellarChess"]
[Black "lamomiajunior"]
[Result "0-1"]
[WhiteElo "2547"]
[BlackElo "2735"]
[TimeControl "180+1"]
[EndTime "16:05:33 PDT"]
[Termination "lamomiajunior won by resignation"]

1. d4 {[%clk 0:03:00.9]} 1... Nf6 {[%clk 0:03:00.1]} 2. Bg5 {[%clk 0:03:00.6]}
2... c5 {[%clk 0:02:56.7]} 3. Bxf6 {[%clk 0:03:00.9]} 3... gxf6 {[%clk
0:02:56.2]} 4. d5 {[%clk 0:03:01.8]} 4... d6 {[%clk 0:02:55.3]} 5. e3 {[%clk
0:03:01.3]} 5... h5 {[%clk 0:02:55]} 6. Ne2 {[%clk 0:02:59.5]} 6... h4 {[%clk
0:02:54]} 7. Nf4 {[%clk 0:02:59.4]} 7... Nd7 {[%clk 0:02:50.3]} 8. Nd2 {[%clk
0:02:53.2]} 8... a6 {[%clk 0:02:49.4]} 9. a4 {[%clk 0:02:53.1]} 9... Ne5 {[%clk
0:02:49.4]} 10. Nc4 {[%clk 0:02:51.6]} 10... Bg7 {[%clk 0:02:48.3]} 11. c3
{[%clk 0:02:51.1]} 11... Bd7 {[%clk 0:02:45.5]} 12. a5 {[%clk 0:02:47.1]} 12...
Nxc4 {[%clk 0:02:31.8]} 13. Bxc4 {[%clk 0:02:46.9]} 13... f5 {[%clk 0:02:32.2]}
14. Qc2 {[%clk 0:02:37.5]} 14... Be5 {[%clk 0:02:30.6]} 15. Bd3 {[%clk 0:01:48]}
15... Qc8 {[%clk 0:02:25.5]} 16. b3 {[%clk 0:01:37]} 16... Rh6 {[%clk
0:02:18.3]} 17. O-O {[%clk 0:01:36.1]} 17... Kf8 {[%clk 0:02:12.4]} 18. Kh1
{[%clk 0:01:35]} 18... Kg7 {[%clk 0:02:12.2]} 19. Bc4 {[%clk 0:01:24.1]} 19...
Qg8 {[%clk 0:02:03.1]} 20. Rac1 {[%clk 0:01:20.2]} 20... Kh8 {[%clk 0:01:59.7]}
21. Qe2 {[%clk 0:01:16.1]} 21... Qg5 {[%clk 0:01:58.7]} 22. Qf3 {[%clk
0:01:11.6]} 22... Rg8 {[%clk 0:01:57.2]} 23. Bd3 {[%clk 0:00:56]} 23... Qg7
{[%clk 0:01:55.7]} 24. h3 {[%clk 0:00:48.7]} 24... Bxc3 {[%clk 0:01:51.1]} 25.
Ne2 {[%clk 0:00:40.5]} 25... Be5 {[%clk 0:01:50.4]} 26. Rg1 {[%clk 0:00:36.7]}
26... e6 {[%clk 0:01:46.7]} 27. Nf4 {[%clk 0:00:27.6]} 27... Bxf4 {[%clk
0:01:41.5]} 28. Qxf4 {[%clk 0:00:19.9]} 28... e5 {[%clk 0:01:40.2]} 29. Qh2
{[%clk 0:00:20]} 29... Qf6 {[%clk 0:01:37.8]} 30. Bc4 {[%clk 0:00:17.5]} 30...
Rg5 {[%clk 0:01:37.2]} 31. f4 {[%clk 0:00:17.7]} 31... Rg3 {[%clk 0:01:36.9]}
32. fxe5 {[%clk 0:00:17.7]} 32... Qxe5 {[%clk 0:01:36.2]} 33. Rce1 {[%clk
0:00:16.9]} 33... Rhg6 {[%clk 0:01:35.7]} 34. Rgf1 {[%clk 0:00:16.2]} 34... Kg7
{[%clk 0:01:35]} 35. e4 {[%clk 0:00:16.4]} 35... f4 {[%clk 0:01:31.8]} 36. Rf2
{[%clk 0:00:14.4]} 36... Rf6 {[%clk 0:01:24.7]} 37. Rf3 {[%clk 0:00:07.5]} 37...
Qg5 {[%clk 0:01:23.4]} 38. Bf1 {[%clk 0:00:06.7]} 38... Rg6 {[%clk 0:01:16.4]}
39. Rxg3 {[%clk 0:00:04.5]} 39... hxg3 {[%clk 0:01:14.9]} 40. Qg1 {[%clk
0:00:05.4]} 40... Qe5 {[%clk 0:01:10.1]} 41. Be2 {[%clk 0:00:03.5]} 41... Rh6
{[%clk 0:01:09.4]} 42. Bf3 {[%clk 0:00:03.7]} 42... Bxh3 {[%clk 0:01:05.8]} 43.
gxh3 {[%clk 0:00:03.4]} 43... Rxh3+ {[%clk 0:01:06.7]} 44. Kg2 {[%clk
0:00:03.8]} 44... Rh2+ {[%clk 0:01:07.3]} 45. Qxh2 {[%clk 0:00:01.3]} 45... gxh2
{[%clk 0:01:08.2]} 46. Kxh2 {[%clk 0:00:01.5]} 46... Qb2+ {[%clk 0:01:08]} 47.
Kh1 {[%clk 0:00:02.4]} 47... Qxb3 {[%clk 0:01:07.9]} 48. Kg2 {[%clk 0:00:03.3]}
48... Qb2+ {[%clk 0:01:07.4]} 49. Re2 {[%clk 0:00:03.3]} 49... Qc3 {[%clk
0:01:07.4]} 50. e5 {[%clk 0:00:03.4]} 50... dxe5 {[%clk 0:01:07.2]} 51. d6
{[%clk 0:00:04.3]} 51... Qd4 {[%clk 0:01:07.6]} 52. Be4 {[%clk 0:00:04.4]} 52...
Qxd6 {[%clk 0:01:07.8]} 53. Kf3 {[%clk 0:00:05.3]} 53... Qd4 {[%clk 0:01:07.2]}
54. Rg2+ {[%clk 0:00:05.4]} 54... Kf6 {[%clk 0:01:07.9]} 55. Bxb7 {[%clk
0:00:05.8]} 55... Qe3+ {[%clk 0:01:08.1]} 56. Kg4 {[%clk 0:00:05.8]} 56... e4
{[%clk 0:01:08.1]} 57. Bxa6 {[%clk 0:00:03.5]} 57... Qf3+ {[%clk 0:01:08.1]} 0-1

[Event "Late-Titled-Tuesday-Blitz-June-04-2024"]
[Site "Chess.com"]
[Date "2024.06.04"]
[Round "11"]
[White "cassoulet"]
[Black "rasmussvane"]
[Result "0-1"]
[WhiteElo "2766"]
[BlackElo "2925"]
[TimeControl "180+1"]
[EndTime "16:05:34 PDT"]
[Termination "rasmussvane won by resignation"]

1. d4 {[%clk 0:03:00.9]} 1... Nf6 {[%clk 0:02:59.1]} 2. Bg5 {[%clk 0:03:00.3]}
2... d5 {[%clk 0:02:55.1]} 3. Bxf6 {[%clk 0:02:59.8]} 3... exf6 {[%clk 0:02:56]}
4. e3 {[%clk 0:03:00.2]} 4... Bd6 {[%clk 0:02:52.3]} 5. g3 {[%clk 0:03:00.2]}
5... O-O {[%clk 0:02:49.9]} 6. Bg2 {[%clk 0:03:00.6]} 6... c6 {[%clk 0:02:50.3]}
7. Nd2 {[%clk 0:03:01]} 7... Be6 {[%clk 0:02:50.4]} 8. Ne2 {[%clk 0:03:00.4]}
8... Nd7 {[%clk 0:02:50.3]} 9. O-O {[%clk 0:03:00.6]} 9... Re8 {[%clk
0:02:45.6]} 10. Rc1 {[%clk 0:03:00.4]} 10... Nb6 {[%clk 0:02:39.3]} 11. c3
{[%clk 0:02:57.7]} 11... a5 {[%clk 0:02:38.3]} 12. b3 {[%clk 0:02:52.9]} 12...
Ba3 {[%clk 0:02:36.4]} 13. Nf4 {[%clk 0:02:31]} 13... Bxc1 {[%clk 0:02:32.3]}
14. Qxc1 {[%clk 0:02:31.9]} 14... a4 {[%clk 0:02:28.2]} 15. b4 {[%clk
0:02:30.5]} 15... Nc8 {[%clk 0:02:08]} 16. a3 {[%clk 0:02:26.8]} 16... Nd6
{[%clk 0:02:07.2]} 17. Nd3 {[%clk 0:02:26.4]} 17... Bf5 {[%clk 0:02:05.4]} 18.
Nf4 {[%clk 0:02:15.3]} 18... g5 {[%clk 0:01:49.1]} 19. Ne2 {[%clk 0:02:10.8]}
19... Bd3 {[%clk 0:01:48.6]} 20. Re1 {[%clk 0:02:11.2]} 20... f5 {[%clk
0:01:45.1]} 21. Qd1 {[%clk 0:02:09.5]} 21... Qf6 {[%clk 0:01:40.7]} 22. Nc1
{[%clk 0:02:09.1]} 22... Bb5 {[%clk 0:01:35.4]} 23. Nf3 {[%clk 0:01:41.6]} 23...
Nc4 {[%clk 0:01:31.1]} 24. Nd3 {[%clk 0:01:40.1]} 24... Nxa3 {[%clk 0:01:27.6]}
25. Nc5 {[%clk 0:01:40.3]} 25... b6 {[%clk 0:01:12.6]} 26. Nd7 {[%clk
0:01:40.1]} 26... Qd8 {[%clk 0:01:12.5]} 27. Nde5 {[%clk 0:01:36.1]} 27... Nc4
{[%clk 0:01:10.7]} 28. Qc2 {[%clk 0:01:25.3]} 28... Nxe5 {[%clk 0:01:07.3]} 29.
Nxe5 {[%clk 0:01:25]} 29... f6 {[%clk 0:01:05.3]} 30. Nf3 {[%clk 0:01:21.8]}
30... Qd7 {[%clk 0:01:01.4]} 31. Nd2 {[%clk 0:01:16.6]} 31... a3 {[%clk
0:00:56.5]} 32. Ra1 {[%clk 0:01:16.4]} 32... Ra6 {[%clk 0:00:46.5]} 33. Bh3
{[%clk 0:01:15.7]} 33... g4 {[%clk 0:00:44.7]} 34. Bf1 {[%clk 0:01:15.6]} 34...
Rea8 {[%clk 0:00:41]} 35. Ra2 {[%clk 0:01:13.8]} 35... Bxf1 {[%clk 0:00:39.6]}
36. Kxf1 {[%clk 0:01:13.8]} 36... Qe6 {[%clk 0:00:37.8]} 37. Kg2 {[%clk
0:01:12.8]} 37... Kg7 {[%clk 0:00:34.9]} 38. Qd3 {[%clk 0:01:08.4]} 38... h5
{[%clk 0:00:33.9]} 39. Kg1 {[%clk 0:01:04.2]} 39... b5 {[%clk 0:00:31]} 40. Qc2
{[%clk 0:01:02.1]} 40... R6a7 {[%clk 0:00:30.8]} 41. Qc1 {[%clk 0:00:59.9]}
41... Kg6 {[%clk 0:00:27.1]} 42. Kg2 {[%clk 0:00:57.6]} 42... h4 {[%clk
0:00:27]} 43. gxh4 {[%clk 0:00:57.4]} 43... Rh8 {[%clk 0:00:26.6]} 44. Rxa3
{[%clk 0:00:57.1]} 44... Rah7 {[%clk 0:00:23.3]} 45. Qb1 {[%clk 0:00:38.2]}
45... Rxh4 {[%clk 0:00:22.3]} 46. Nf1 {[%clk 0:00:38.5]} 46... Qd6 {[%clk
0:00:20.6]} 47. Ng3 {[%clk 0:00:36.7]} 47... Rxh2+ {[%clk 0:00:20.6]} 48. Kg1
{[%clk 0:00:37.2]} 48... Rh1+ {[%clk 0:00:19.9]} 49. Nxh1 {[%clk 0:00:33.6]}
49... Qh2+ {[%clk 0:00:20.1]} 50. Kf1 {[%clk 0:00:33.4]} 50... Qxh1+ {[%clk
0:00:20.7]} 0-1

[Event "Late-Titled-Tuesday-Blitz-June-04-2024"]
[Site "Chess.com"]
[Date "2024.06.04"]
[Round "11"]
[White "maurovargas01"]
[Black "cthake"]
[Result "0-1"]
[WhiteElo "1900"]
[BlackElo "1767"]
[TimeControl "180+1"]
[EndTime "16:05:35 PDT"]
[Termination "cthake won by resignation"]

1. e4 {[%clk 0:02:55.9]} 1... e6 {[%clk 0:02:57]} 2. Nc3 {[%clk 0:02:54.7]} 2...
d5 {[%clk 0:02:56.3]} 3. e5 {[%clk 0:02:55]} 3... c5 {[%clk 0:02:55.5]} 4. f4
{[%clk 0:02:54.9]} 4... Nc6 {[%clk 0:02:55.5]} 5. Nf3 {[%clk 0:02:54.5]} 5...
Bd7 {[%clk 0:02:55.3]} 6. g4 {[%clk 0:02:54.3]} 6... Nge7 {[%clk 0:02:43]} 7.
Bg2 {[%clk 0:02:53.2]} 7... Ng6 {[%clk 0:02:37.5]} 8. d3 {[%clk 0:02:52.2]} 8...
Nh4 {[%clk 0:02:35.7]} 9. O-O {[%clk 0:02:51.7]} 9... Nxg2 {[%clk 0:02:34.8]}
10. Kxg2 {[%clk 0:02:52.6]} 10... h5 {[%clk 0:02:34.3]} 11. g5 {[%clk
0:02:52.4]} 11... g6 {[%clk 0:02:30.1]} 12. h4 {[%clk 0:02:52.1]} 12... Ne7
{[%clk 0:02:30.1]} 13. Ne2 {[%clk 0:02:48]} 13... Nf5 {[%clk 0:02:30]} 14. Ng3
{[%clk 0:02:47.8]} 14... Nxg3 {[%clk 0:02:25.3]} 15. Kxg3 {[%clk 0:02:47.4]}
15... b5 {[%clk 0:02:23.8]} 16. Bd2 {[%clk 0:02:37.3]} 16... a5 {[%clk
0:02:22.9]} 17. Qe1 {[%clk 0:02:37.2]} 17... a4 {[%clk 0:02:22.9]} 18. a3 {[%clk
0:02:37]} 18... Be7 {[%clk 0:02:22]} 19. b4 {[%clk 0:02:22.4]} 19... Qc7 {[%clk
0:02:11.4]} 20. c4 {[%clk 0:02:14.2]} 20... bxc4 {[%clk 0:01:57.2]} 21. dxc4
{[%clk 0:02:14]} 21... O-O {[%clk 0:01:45.8]} 22. cxd5 {[%clk 0:02:13.1]} 22...
exd5 {[%clk 0:01:45.1]} 23. bxc5 {[%clk 0:02:13.1]} 23... Bb5 {[%clk 0:01:30.8]}
24. Rf2 {[%clk 0:02:09.3]} 24... Qd7 {[%clk 0:01:30.3]} 25. Nd4 {[%clk
0:02:04.5]} 25... Qg4+ {[%clk 0:01:29.7]} 26. Kh2 {[%clk 0:02:02.6]} 26... Qxh4+
{[%clk 0:01:24.9]} 27. Kg1 {[%clk 0:02:02.3]} 27... Bc4 {[%clk 0:01:14.9]} 28.
Rg2 {[%clk 0:01:41.1]} 28... Qxe1+ {[%clk 0:01:04.6]} 29. Bxe1 {[%clk
0:01:39.6]} 29... Bxc5 {[%clk 0:01:05.3]} 30. Bf2 {[%clk 0:01:37.7]} 30... Rfc8
{[%clk 0:00:55.1]} 31. e6 {[%clk 0:01:33.8]} 31... fxe6 {[%clk 0:00:47]} 32.
Nxe6 {[%clk 0:01:32.3]} 32... Bxf2+ {[%clk 0:00:45.9]} 33. Rxf2 {[%clk
0:01:32.3]} 33... Bb3 {[%clk 0:00:40.6]} 34. f5 {[%clk 0:01:25.2]} 34... gxf5
{[%clk 0:00:38.8]} 35. Rxf5 {[%clk 0:01:24.5]} 35... Rc3 {[%clk 0:00:38]} 36.
Raf1 {[%clk 0:01:20.8]} 36... Rg3+ {[%clk 0:00:34.4]} 37. Kh2 {[%clk 0:01:19.1]}
37... Rg4 {[%clk 0:00:33.2]} 38. Rf8+ {[%clk 0:01:07.8]} 38... Rxf8 {[%clk
0:00:30.3]} 39. Rxf8+ {[%clk 0:01:07.4]} 39... Kh7 {[%clk 0:00:30.4]} 40. Rf5
{[%clk 0:00:56.2]} 40... d4 {[%clk 0:00:30.1]} 41. Nf8+ {[%clk 0:00:46.1]} 41...
Kg7 {[%clk 0:00:29.5]} 42. g6 {[%clk 0:00:42.7]} 42... d3 {[%clk 0:00:27.5]} 43.
Rf7+ {[%clk 0:00:35.4]} 43... Bxf7 {[%clk 0:00:26.4]} 44. gxf7 {[%clk
0:00:33.9]} 44... Kxf8 {[%clk 0:00:26.4]} 45. Kh3 {[%clk 0:00:32.6]} 45... Rg1
{[%clk 0:00:26.1]} 0-1

[Event "Late-Titled-Tuesday-Blitz-June-04-2024"]
[Site "Chess.com"]
[Date "2024.06.04"]
[Round "11"]
[White "Aygehovit1992"]
[Black "Hikaru"]
[Result "0-1"]
[WhiteElo "2824"]
[BlackElo "3196"]
[TimeControl "180+1"]
[EndTime "16:05:49 PDT"]
[Termination "Hikaru won by checkmate"]

1. e4 {[%clk 0:03:00.9]} 1... a6 {[%clk 0:02:58.4]} 2. d4 {[%clk 0:03:00.9]}
2... e6 {[%clk 0:02:57.5]} 3. Bd3 {[%clk 0:03:00.5]} 3... d5 {[%clk 0:02:56.9]}
4. e5 {[%clk 0:02:56.2]} 4... c5 {[%clk 0:02:55.4]} 5. c3 {[%clk 0:02:56.2]}
5... Bd7 {[%clk 0:02:55.1]} 6. Nf3 {[%clk 0:02:45.2]} 6... Bb5 {[%clk
0:02:54.7]} 7. Bxb5+ {[%clk 0:02:37]} 7... axb5 {[%clk 0:02:55.6]} 8. dxc5
{[%clk 0:02:37.5]} 8... Bxc5 {[%clk 0:02:55.5]} 9. Nbd2 {[%clk 0:02:37.5]} 9...
Nc6 {[%clk 0:02:54]} 10. Nb3 {[%clk 0:02:37.6]} 10... Bb6 {[%clk 0:02:53.2]} 11.
h4 {[%clk 0:02:24.3]} 11... Nge7 {[%clk 0:02:48.4]} 12. h5 {[%clk 0:02:24.3]}
12... h6 {[%clk 0:02:48.8]} 13. Nfd4 {[%clk 0:02:13.2]} 13... Nxe5 {[%clk
0:02:45.7]} 14. Bf4 {[%clk 0:02:07.7]} 14... N5c6 {[%clk 0:02:36]} 15. Nxb5
{[%clk 0:01:56.5]} 15... e5 {[%clk 0:02:35.6]} 16. Be3 {[%clk 0:01:45.4]} 16...
O-O {[%clk 0:02:20.8]} 17. Qg4 {[%clk 0:01:42.9]} 17... Bxe3 {[%clk 0:02:16.6]}
18. fxe3 {[%clk 0:01:43.8]} 18... Qb6 {[%clk 0:02:16.7]} 19. Qe2 {[%clk
0:01:39.7]} 19... Nf5 {[%clk 0:02:15.3]} 20. Rh3 {[%clk 0:01:39.9]} 20... Ra4
{[%clk 0:02:08.3]} 21. g4 {[%clk 0:01:39.9]} 21... Nfe7 {[%clk 0:02:05.4]} 22.
Na3 {[%clk 0:01:11.3]} 22... f6 {[%clk 0:01:46.4]} 23. O-O-O {[%clk 0:01:11]}
23... Rfa8 {[%clk 0:01:45.3]} 24. Rh2 {[%clk 0:00:46.4]} 24... Re4 {[%clk
0:01:39.8]} 25. Rh3 {[%clk 0:00:39.3]} 25... Raa4 {[%clk 0:01:39.5]} 26. Rg3
{[%clk 0:00:38.9]} 26... Na5 {[%clk 0:01:22.4]} 27. Nd2 {[%clk 0:00:26.2]} 27...
Rxa3 {[%clk 0:01:22.6]} 28. bxa3 {[%clk 0:00:17.4]} 28... Ra4 {[%clk 0:01:23.1]}
29. Nb1 {[%clk 0:00:08]} 29... Qc6 {[%clk 0:01:23.2]} 30. g5 {[%clk 0:00:07.5]}
30... hxg5 {[%clk 0:01:13]} 31. h6 {[%clk 0:00:07.1]} 31... Nf5 {[%clk
0:01:13.5]} 32. h7+ {[%clk 0:00:06.1]} 32... Kh8 {[%clk 0:01:13.8]} 33. Rh3
{[%clk 0:00:04.7]} 33... Nh4 {[%clk 0:00:53.9]} 34. Qh5 {[%clk 0:00:04.6]} 34...
Nc4 {[%clk 0:00:38]} 35. Qf7 {[%clk 0:00:04.3]} 35... Ra8 {[%clk 0:00:38.1]} 36.
Rxd5 {[%clk 0:00:03.2]} 36... Qb6 {[%clk 0:00:34.5]} 37. Rd7 {[%clk 0:00:01.8]}
37... Qb2+ {[%clk 0:00:33.5]} 38. Kd1 {[%clk 0:00:02.2]} 38... Qxb1+ {[%clk
0:00:34.1]} 39. Ke2 {[%clk 0:00:02.1]} 39... Qxa2+ {[%clk 0:00:32.4]} 40. Ke1
{[%clk 0:00:01.5]} 40... Ng2+ {[%clk 0:00:30.2]} 41. Kf1 {[%clk 0:00:01.8]}
41... Ngxe3+ {[%clk 0:00:23.2]} 42. Ke1 {[%clk 0:00:02.3]} 42... Qb1+ {[%clk
0:00:23.1]} 43. Ke2 {[%clk 0:00:02.1]} 43... Qf1# {[%clk 0:00:23.3]} 0-1

[Event "Late-Titled-Tuesday-Blitz-June-04-2024"]
[Site "Chess.com"]
[Date "2024.06.04"]
[Round "11"]
[White "Bryanl106"]
[Black "xakevicius91"]
[Result "0-1"]
[WhiteElo "2701"]
[BlackElo "2584"]
[TimeControl "180+1"]
[EndTime "16:05:49 PDT"]
[Termination "xakevicius91 won by resignation"]

1. e4 {[%clk 0:03:00.9]} 1... c5 {[%clk 0:02:49]} 2. Nf3 {[%clk 0:02:59.6]} 2...
a6 {[%clk 0:02:49.4]} 3. Nc3 {[%clk 0:02:54.1]} 3... Nc6 {[%clk 0:02:45.6]} 4.
d4 {[%clk 0:02:47.8]} 4... cxd4 {[%clk 0:02:46.5]} 5. Nxd4 {[%clk 0:02:47.6]}
5... Qc7 {[%clk 0:02:47.2]} 6. Be3 {[%clk 0:02:47.2]} 6... e6 {[%clk 0:02:47.1]}
7. a3 {[%clk 0:02:46.3]} 7... Be7 {[%clk 0:02:46]} 8. Qd2 {[%clk 0:02:45.1]}
8... b5 {[%clk 0:02:41.4]} 9. f4 {[%clk 0:02:41.6]} 9... b4 {[%clk 0:02:38.6]}
10. axb4 {[%clk 0:02:38.2]} 10... Bxb4 {[%clk 0:02:37.3]} 11. Nxc6 {[%clk
0:02:38.5]} 11... Qxc6 {[%clk 0:02:36.5]} 12. Qd4 {[%clk 0:02:38.7]} 12... Bxc3+
{[%clk 0:02:33.1]} 13. bxc3 {[%clk 0:02:39.6]} 13... Nf6 {[%clk 0:02:29.3]} 14.
Bd3 {[%clk 0:02:39.5]} 14... O-O {[%clk 0:02:26]} 15. O-O {[%clk 0:02:19.1]}
15... Bb7 {[%clk 0:02:24.4]} 16. Rfb1 {[%clk 0:02:03.9]} 16... Rfc8 {[%clk
0:01:52.5]} 17. Rb6 {[%clk 0:02:00.9]} 17... Qc7 {[%clk 0:01:52.4]} 18. Rab1
{[%clk 0:01:59.6]} 18... Rab8 {[%clk 0:01:41.2]} 19. c4 {[%clk 0:01:48.7]} 19...
Bc6 {[%clk 0:01:27.8]} 20. e5 {[%clk 0:01:40.3]} 20... Ne8 {[%clk 0:01:23]} 21.
c5 {[%clk 0:01:32.9]} 21... Rxb6 {[%clk 0:01:14.7]} 22. Rxb6 {[%clk 0:01:33.3]}
22... a5 {[%clk 0:01:13.3]} 23. Qa1 {[%clk 0:01:18.7]} 23... a4 {[%clk
0:01:12.2]} 24. Bd2 {[%clk 0:01:13.6]} 24... Ra8 {[%clk 0:00:57.2]} 25. Qa3
{[%clk 0:01:12]} 25... g6 {[%clk 0:00:55]} 26. Ra6 {[%clk 0:00:59.1]} 26... Rxa6
{[%clk 0:00:53.3]} 27. Bxa6 {[%clk 0:01:00]} 27... Qa7 {[%clk 0:00:48.7]} 28.
Bd3 {[%clk 0:00:50.3]} 28... Qb7 {[%clk 0:00:48]} 29. g3 {[%clk 0:00:36.5]}
29... Nc7 {[%clk 0:00:48]} 30. Qb4 {[%clk 0:00:32.7]} 30... Qa8 {[%clk 0:00:46]}
31. Qa3 {[%clk 0:00:22.6]} 31... Bh1 {[%clk 0:00:45.5]} 32. Bf1 {[%clk
0:00:21.3]} 32... Bc6 {[%clk 0:00:45.4]} 33. c4 {[%clk 0:00:21.2]} 33... h5
{[%clk 0:00:43.8]} 34. Bc3 {[%clk 0:00:21.5]} 34... h4 {[%clk 0:00:43.9]} 35.
Qb4 {[%clk 0:00:21.2]} 35... a3 {[%clk 0:00:43.2]} 36. Qb6 {[%clk 0:00:19.7]}
36... a2 {[%clk 0:00:42.8]} 37. Qxc7 {[%clk 0:00:19.1]} 37... a1=Q {[%clk
0:00:42.9]} 38. Bxa1 {[%clk 0:00:18.9]} 38... Qxa1 {[%clk 0:00:43.1]} 39. Qd6
{[%clk 0:00:17.9]} 39... h3 {[%clk 0:00:41]} 40. Kf2 {[%clk 0:00:11.7]} 40...
Qb2+ {[%clk 0:00:39.7]} 41. Be2 {[%clk 0:00:12.1]} 41... Qc1 {[%clk 0:00:34.7]}
42. Qd1 {[%clk 0:00:10.6]} 42... Qc3 {[%clk 0:00:32.6]} 43. Qd3 {[%clk
0:00:09.9]} 43... Qa1 {[%clk 0:00:29.3]} 44. Qd1 {[%clk 0:00:09.4]} 44... Qa3
{[%clk 0:00:29.5]} 45. Qd4 {[%clk 0:00:03.1]} 45... Qc1 {[%clk 0:00:29.2]} 46.
Qd1 {[%clk 0:00:02.9]} 46... Qc3 {[%clk 0:00:29.5]} 47. Qd4 {[%clk 0:00:01.6]}
47... Qxd4+ {[%clk 0:00:28.7]} 0-1

[Event "Late-Titled-Tuesday-Blitz-June-04-2024"]
[Site "Chess.com"]
[Date "2024.06.04"]
[Round "11"]
[White "BashiqChess"]
[Black "Ramosha"]
[Result "0-1"]
[WhiteElo "2493"]
[BlackElo "2640"]
[TimeControl "180+1"]
[EndTime "16:05:50 PDT"]
[Termination "Ramosha won on time"]

1. Nf3 {[%clk 0:02:53.2]} 1... Nf6 {[%clk 0:03:00.1]} 2. b3 {[%clk 0:02:53.5]}
2... d5 {[%clk 0:03:00.5]} 3. Bb2 {[%clk 0:02:53.6]} 3... c5 {[%clk 0:03:01.4]}
4. e3 {[%clk 0:02:54.2]} 4... Nc6 {[%clk 0:03:01.6]} 5. Bb5 {[%clk 0:02:52.6]}
5... e6 {[%clk 0:03:02]} 6. O-O {[%clk 0:02:50.6]} 6... Bd6 {[%clk 0:03:01.7]}
7. d3 {[%clk 0:02:51.2]} 7... Bd7 {[%clk 0:03:01.8]} 8. e4 {[%clk 0:02:48.7]}
8... Bc7 {[%clk 0:02:55.4]} 9. exd5 {[%clk 0:02:30]} 9... Nxd5 {[%clk
0:02:54.1]} 10. c4 {[%clk 0:01:51.2]} 10... Nf6 {[%clk 0:02:49.8]} 11. d4 {[%clk
0:01:48.8]} 11... cxd4 {[%clk 0:02:49.1]} 12. Nxd4 {[%clk 0:01:45.7]} 12... Nxd4
{[%clk 0:02:48.8]} 13. Bxd7+ {[%clk 0:01:41.5]} 13... Qxd7 {[%clk 0:02:48.6]}
14. Qxd4 {[%clk 0:01:42.1]} 14... Qxd4 {[%clk 0:02:46.4]} 15. Bxd4 {[%clk
0:01:43]} 15... a6 {[%clk 0:02:46.8]} 16. Nc3 {[%clk 0:01:42.4]} 16... O-O-O
{[%clk 0:02:46.6]} 17. Bxf6 {[%clk 0:01:38.6]} 17... gxf6 {[%clk 0:02:46.6]} 18.
Rad1 {[%clk 0:01:39]} 18... f5 {[%clk 0:02:45.7]} 19. g3 {[%clk 0:01:36.8]}
19... h5 {[%clk 0:02:45.7]} 20. f4 {[%clk 0:01:35.9]} 20... h4 {[%clk
0:02:45.4]} 21. Kg2 {[%clk 0:01:36.1]} 21... h3+ {[%clk 0:02:45]} 22. Kf3 {[%clk
0:01:34.9]} 22... Ba5 {[%clk 0:02:45]} 23. Ne2 {[%clk 0:01:24.9]} 23... Bb6
{[%clk 0:02:42.4]} 24. a3 {[%clk 0:01:22.6]} 24... f6 {[%clk 0:02:42.2]} 25. b4
{[%clk 0:01:21.6]} 25... e5 {[%clk 0:02:42.1]} 26. fxe5 {[%clk 0:01:22]} 26...
fxe5 {[%clk 0:02:43]} 27. c5 {[%clk 0:01:22.7]} 27... Bc7 {[%clk 0:02:43]} 28.
Ng1 {[%clk 0:01:11.3]} 28... f4 {[%clk 0:02:40.2]} 29. Rxd8+ {[%clk 0:01:09.8]}
29... Kxd8 {[%clk 0:02:39.7]} 30. gxf4 {[%clk 0:01:08.7]} 30... exf4 {[%clk
0:02:40.6]} 31. Rd1+ {[%clk 0:01:07.4]} 31... Ke7 {[%clk 0:02:40.4]} 32. Ne2
{[%clk 0:01:06.3]} 32... Rh6 {[%clk 0:02:35.7]} 33. Rd4 {[%clk 0:01:01.5]} 33...
Rg6 {[%clk 0:02:28.8]} 34. Nxf4 {[%clk 0:00:57.9]} 34... Bxf4 {[%clk 0:02:25.7]}
35. Rxf4 {[%clk 0:00:49.7]} 35... Rg2 {[%clk 0:02:25.7]} 36. Re4+ {[%clk
0:00:50.3]} 36... Kf6 {[%clk 0:02:22.9]} 37. Re2 {[%clk 0:00:50]} 37... Rg1
{[%clk 0:02:23.4]} 38. Kf4 {[%clk 0:00:41.1]} 38... Rg2 {[%clk 0:02:23.3]} 39.
Ke3 {[%clk 0:00:32.3]} 39... Rg1 {[%clk 0:02:19.6]} 40. Rf2+ {[%clk 0:00:32.3]}
40... Ke5 {[%clk 0:02:06]} 41. Ra2 {[%clk 0:00:19.8]} 41... Kd5 {[%clk
0:02:01.1]} 42. Rd2+ {[%clk 0:00:13.5]} 42... Kc6 {[%clk 0:01:49.5]} 43. Kf3
{[%clk 0:00:13.5]} 43... a5 {[%clk 0:01:43.7]} 44. Rd6+ {[%clk 0:00:12]} 44...
Kc7 {[%clk 0:01:38]} 45. b5 {[%clk 0:00:09.9]} 45... Ra1 {[%clk 0:01:38]} 46.
b6+ {[%clk 0:00:08.2]} 46... Kc8 {[%clk 0:01:38]} 47. Rd3 {[%clk 0:00:03.3]}
47... Rc1 {[%clk 0:01:37.4]} 48. Rd5 {[%clk 0:00:02.3]} 48... Rc3+ {[%clk
0:01:37.3]} 49. Kg4 {[%clk 0:00:02.8]} 49... Rxa3 {[%clk 0:01:38]} 50. Rh5
{[%clk 0:00:02.9]} 50... Rc3 {[%clk 0:01:36]} 51. Rh8+ {[%clk 0:00:02.2]} 51...
Kd7 {[%clk 0:01:36.3]} 52. Rh7+ {[%clk 0:00:02.9]} 52... Kc6 {[%clk 0:01:36.4]}
53. Rc7+ {[%clk 0:00:02.7]} 53... Kb5 {[%clk 0:01:36.8]} 54. Rxb7 {[%clk
0:00:02.7]} 54... Rxc5 {[%clk 0:01:37.2]} 55. Kxh3 {[%clk 0:00:03]} 55... Rh5+
{[%clk 0:01:33.8]} 56. Kg3 {[%clk 0:00:02.7]} 56... Rh6 {[%clk 0:01:31.9]} 57.
h4 {[%clk 0:00:02.1]} 57... a4 {[%clk 0:01:30.5]} 58. Kg4 {[%clk 0:00:01.2]}
58... Rxb6 {[%clk 0:01:26.8]} 59. Ra7 {[%clk 0:00:01.2]} 59... Ra6 {[%clk
0:01:22.9]} 60. Rb7+ {[%clk 0:00:01.6]} 60... Kc6 {[%clk 0:01:22.5]} 61. Rb1
{[%clk 0:00:01.5]} 61... Kd7 {[%clk 0:01:18.1]} 62. h5 {[%clk 0:00:01.4]} 62...
Ke7 {[%clk 0:01:18.5]} 0-1